bitfinex/quotes_SOLUSD_20250310
["timestamp","ask_amount","ask_price","bid_price","bid_amount"]
[1741619906133,12.4,122.57,122.52,70.0339421]
[1741619906343,12.4,122.57,122.53,69.89178053]
[1741619906642,194.34,122.58,122.54,70.0339421]
[1741619906844,194.34,122.58,122.56,0.14216157]
[1741619907220,69.89178053,122.57,122.52,78.05368053]
[1741619907432,0.17394166,122.54,122.53,0.14216157]
[1741619907641,0.17394166,122.54,122.53,70.0339421]
[1741619907943,0.17394166,122.54,122.53,70.17610367]
[1741619908240,0.17394166,122.54,122.53,70.0339421]
[1741619908436,0.17394166,122.54,122.53,70.17610367]
[1741619908945,4.166e-05,122.54,122.53,78.33730367]
[1741619909318,4.166e-05,122.54,122.53,96.98695253]
[1741619909523,9.334e-05,122.55,122.54,0.14216157]
[1741619909747,9.334e-05,122.55,122.54,89.21470051]
[1741619909936,9.334e-05,122.55,122.54,0.14216157]
[1741619910133,9.334e-05,122.55,122.53,8.1612]
[1741619910329,9.334e-05,122.55,122.54,70.17610367]
[1741619910731,9.334e-05,122.55,122.54,89.21470051]
[1741619910942,9.334e-05,122.55,122.54,97.37530051]
[1741619911137,9.334e-05,122.55,122.54,97.23313894]
[1741619911527,1.079e-05,122.56,122.54,97.37530051]
[1741619911828,1.079e-05,122.56,122.55,70.0339421]
[1741619912537,1.079e-05,122.56,122.55,70.17610367]
[1741619913034,1.079e-05,122.56,122.55,78.1938421]
[1741619913234,1.079e-05,122.56,122.55,8.30206157]
[1741619913429,1.079e-05,122.56,122.55,78.1938421]
[1741619913837,1.079e-05,122.56,122.55,78.33600367]
[1741619914242,1.079e-05,122.56,122.5,19.03859684]
[1741619914442,69.89179132,122.56,122.52,0.14216157]
[1741619914628,1.079e-05,122.56,122.52,0.14216157]
[1741619915136,1.079e-05,122.56,122.54,0.14216157]
[1741619915535,1.079e-05,122.56,122.55,69.89178053]
[1741619915745,1.079e-05,122.56,122.55,70.17610367]
[1741619916248,1.079e-05,122.56,122.52,28.5663]
[1741619916439,1.079e-05,122.56,122.53,0.14216157]
[1741619916639,1.079e-05,122.56,122.53,70.0339421]
[1741619916837,1.079e-05,122.56,122.55,0.14216157]
[1741619917045,1.079e-05,122.56,122.55,70.0339421]
[1741619917238,1.079e-05,122.56,122.54,8.1606]
[1741619917435,1.079e-05,122.56,122.55,70.17610367]
[1741619917828,1.079e-05,122.56,122.55,0.28432314]
[1741619918044,1.079e-05,122.56,122.55,70.17610367]
[1741619918342,1.079e-05,122.56,122.55,0.14216157]
[1741619918543,1.079e-05,122.56,122.53,0.14216157]
[1741619918733,69.89178053,122.54,122.49,69.92178053]
[1741619918931,69.89178053,122.53,122.49,8.33586157]
[1741619919125,8.16,122.55,122.51,0.14216157]
[1741619919126,69.89178053,122.55,122.51,0.14216157]
[1741619919336,82.27179132,122.56,122.51,70.0339421]
[1741619919552,12.38001079,122.56,122.53,0.14216157]
[1741619919739,12.38001079,122.56,122.54,0.14216157]
[1741619919943,12.38001079,122.56,122.53,0.14216157]
[1741619920248,12.38001079,122.56,122.53,70.0339421]
[1741619920433,12.38001079,122.56,122.55,0.14216157]
[1741619920925,12.38001079,122.56,122.53,8.1608]
[1741619921130,12.38001079,122.56,122.54,0.14216157]
[1741619921847,82.27179132,122.56,122.53,0.14216157]
[1741619922050,12.38001079,122.56,122.53,0.14216157]
[1741619922231,12.38001079,122.56,122.53,70.0339421]
[1741619922432,12.38001079,122.56,122.53,0.14216157]
[1741619922950,12.38001079,122.56,122.54,8.1606]
[1741619923133,12.38001079,122.56,122.55,0.14216157]
[1741619923134,1.079e-05,122.56,122.55,0.14216157]
[1741619923635,1.079e-05,122.56,122.54,8.1606]
[1741619923836,1.079e-05,122.56,122.55,0.14216157]
[1741619924247,69.89179132,122.56,122.5,69.89178053]
[1741619924554,69.89178053,122.55,122.51,0.14216157]
[1741619924748,69.89178053,122.55,122.49,69.92178053]
[1741619924950,12.36,122.54,122.49,8.33576157]
[1741619925169,12.36,122.54,122.53,0.03]
[1741619926332,109.06202939,122.54,122.49,0.03]
[1741619926532,69.89178053,122.51,122.49,0.03]
[1741619926753,69.89178053,122.52,122.49,0.03]
[1741619927053,171.51248053,122.54,122.49,0.17216157]
[1741619927265,69.89178053,122.52,122.49,0.17216157]
[1741619927569,0.16031243,122.5,122.49,0.17216157]
[1741619927732,0.16031243,122.5,122.49,0.03]
[1741619928054,81.1,122.49,122.43,8.1978]
[1741619928237,69.89178053,122.47,122.43,0.03]
[1741619928844,69.89178053,122.46,122.43,0.03]
[1741619929567,69.89178053,122.44,122.43,0.03]
[1741619929946,18.64964886,122.46,122.43,0.03]
[1741619930137,69.89178053,122.44,122.43,0.03]
[1741619931336,78.05898053,122.44,122.43,0.03]
[1741619931538,69.89178053,122.44,122.43,0.03]
[1741619931835,69.89178053,122.45,122.43,0.03]
[1741619932049,81.1,122.46,122.43,0.03]
[1741619932050,69.89178053,122.44,122.43,0.03]
[1741619932855,88.54142939,122.44,122.43,0.03]
[1741619933051,69.89178053,122.44,122.43,0.03]
[1741619933736,78.05898053,122.44,122.43,0.03]
[1741619933934,69.89178053,122.44,122.43,0.03]
[1741619935268,177.80862939,122.44,122.43,0.03]
[1741619936773,169.64142939,122.44,122.43,0.03]
[1741619937080,177.80862939,122.44,122.43,0.03]
[1741619938149,150.99178053,122.44,122.43,0.03]
[1741619938873,159.15898053,122.44,122.43,0.03]
[1741619939556,177.80862939,122.44,122.43,0.03]
[1741619940358,153.88872922,122.44,122.43,0.03]
[1741619940962,267.44872922,122.44,122.43,0.03]
[1741619942679,279.80872922,122.44,122.43,0.03]
[1741619943664,281.80872922,122.44,122.43,0.03]
[1741619944071,302.22682922,122.44,122.41,0.063]
[1741619944276,77.21492922,122.42,122.41,0.063]
[1741619944564,18.64964886,122.34,122.3,0.03]
[1741619944763,45.97188036,122.31,122.3,0.03]
[1741619944959,64.62152922,122.31,122.28,0.03]
[1741619945157,45.97188036,122.29,122.28,0.03]
[1741619945598,18.64964886,122.27,122.25,0.03]
[1741619945899,72.80072922,122.26,122.25,0.03]
[1741619946074,54.15108036,122.26,122.25,0.03]
[1741619946278,77.35015431,122.26,122.25,0.03]
[1741619946600,194.72,122.29,122.25,0.03]
[1741619946790,194.72,122.29,122.26,0.28432314]
[1741619946968,202.8976,122.29,122.25,0.03]
[1741619947165,69.17095431,122.28,122.25,0.03]
[1741619947397,0.16438307,122.26,122.25,0.03]
[1741619947841,0.16438307,122.26,122.25,107.17352315]
[1741619947967,0.16438307,122.26,122.25,115.35342315]
[1741619948171,0.16438307,122.26,122.25,96.70377429]
[1741619948465,0.16438307,122.26,122.25,0.03]
[1741619948705,0.16438307,122.26,122.25,77.52301588]
[1741619949101,0.16438307,122.26,122.25,0.31432314]
[1741619949306,0.16438307,122.26,122.25,0.17216157]
[1741619949630,89.85453738,122.26,122.25,0.03]
[1741619949924,89.85453738,122.26,122.21,0.20134651]
[1741619949925,189.60418624,122.26,122.21,0.20134651]
[1741619950235,69.17095431,122.22,122.21,0.20134651]
[1741619950396,138.34190862,122.22,122.21,0.20134651]
[1741619950591,156.99155748,122.22,122.18,0.1651871]
[1741619950795,69.17095431,122.19,122.18,0.15602406]
[1741619951026,69.17095431,122.21,122.18,0.15602406]
[1741619951322,207.2,122.22,122.2,0.14216157]
[1741619951323,194.86,122.22,122.2,0.14216157]
[1741619951630,194.86,122.22,122.2,0.28432314]
[1741619951788,0.16438307,122.26,122.22,0.28432314]
[1741619951993,0.16438307,122.26,122.24,0.28432314]
[1741619952395,2.0,122.23,122.18,0.15602406]
[1741619952726,18.64964886,122.18,122.12,0.03]
[1741619953020,69.17095431,122.15,122.12,0.03]
[1741619953225,12.34,122.16,122.13,69.17095431]
[1741619953524,69.17095431,122.14,122.12,0.03]
[1741619953729,69.17095431,122.13,122.12,0.03]
[1741619954325,102.03569736,122.13,122.12,0.03]
[1741619954535,96.00850317,122.13,122.12,0.03]
[1741619954901,69.17095431,122.13,122.12,0.03]
[1741619955319,87.82060317,122.13,122.12,0.03]
[1741619955515,87.82060317,122.13,122.1,0.03]
[1741619955516,18.64964886,122.12,122.1,0.03]
[1741619955831,87.82060317,122.11,122.1,0.03]
[1741619956030,18.64964886,122.1,122.03,0.14216157]
[1741619956203,69.17095431,122.09,122.03,77.64987745]
[1741619956401,69.17095431,122.1,122.05,0.14216157]
[1741619956930,69.17095431,122.1,122.05,88.10492631]
[1741619957135,69.17095431,122.09,122.05,19.18075841]
[1741619957321,69.17095431,122.09,122.06,0.14216157]
[1741619957524,207.26,122.11,122.04,0.14216157]
[1741619957698,69.17095431,122.08,122.04,0.28432314]
[1741619958033,207.26,122.11,122.04,77.64887745]
[1741619958236,207.26,122.11,122.05,18.79181043]
[1741619958237,276.43095431,122.11,122.05,18.79181043]
[1741619958534,207.26,122.11,122.07,0.14216157]
[1741619958738,207.26,122.11,122.08,0.14216157]
[1741619958902,194.92,122.11,122.09,0.14216157]
[1741619959101,194.92,122.11,122.1,0.14216157]
[1741619959304,194.92,122.11,122.1,69.45527745]
[1741619959520,194.92,122.11,122.1,0.28432314]
[1741619959824,69.17095431,122.16,122.11,0.28432314]
[1741619960003,69.17095431,122.17,122.13,0.28432314]
[1741619960209,195.06,122.18,122.16,0.28432314]
[1741619960405,195.06,122.18,122.16,0.14216157]
[1741619960606,264.23095431,122.18,122.16,0.14216157]
[1741619960811,69.17095431,122.17,122.14,0.14216157]
[1741619961122,69.17095431,122.15,122.12,0.28432314]
[1741619961322,264.23095431,122.18,122.12,0.28432314]
[1741619961528,69.17095431,122.17,122.12,69.45527745]
[1741619961730,69.17095431,122.16,122.12,0.28432314]
[1741619961934,264.23095431,122.18,122.14,0.28432314]
[1741619962135,195.06,122.18,122.14,69.45527745]
[1741619962441,12.34,122.21,122.17,69.45527745]
[1741619962605,69.23395431,122.24,122.19,89.45527745]
[1741619962804,0.063,122.24,122.21,0.28432314]
[1741619963006,0.063,122.24,122.21,0.14216157]
[1741619963428,0.063,122.24,122.22,0.14216157]
[1741619963611,0.063,122.24,122.22,69.31311588]
[1741619963808,0.063,122.24,122.23,88.10492631]
[1741619964041,0.063,122.24,122.23,115.32472315]
[1741619964450,0.063,122.24,122.23,96.67507429]
[1741619964616,0.063,122.24,122.23,19.32291998]
[1741619964809,0.063,122.24,122.23,0.14216157]
[1741619965017,0.063,122.24,122.23,77.63647745]
[1741619965626,0.16438307,122.26,122.25,20.28432314]
[1741619965836,5.115e-05,122.28,122.26,18.933972]
[1741619966143,5.115e-05,122.28,122.27,8.46292314]
[1741619966439,5.115e-05,122.28,122.27,0.28432314]
[1741619966650,5.115e-05,122.28,122.23,96.39015115]
[1741619966942,69.17095431,122.27,122.24,0.28432314]
[1741619967551,69.32258542,122.25,122.21,0.14216157]
[1741619967875,69.17095431,122.23,122.21,0.14216157]
[1741619968046,69.17095431,122.22,122.18,0.14216157]
[1741619968247,18.80127997,122.25,122.18,0.14216157]
[1741619968546,69.17095431,122.23,122.19,0.14216157]
[1741619968925,69.17095431,122.24,122.2,0.14216157]
[1741619969132,69.17095431,122.23,122.2,0.14216157]
[1741619969342,0.15163111,122.25,122.22,0.28432314]
[1741619969517,0.15163111,122.25,122.23,69.31311588]
[1741619969718,0.15163111,122.25,122.23,0.14216157]
[1741619970123,0.15163111,122.25,122.22,0.28432314]
[1741619970454,0.15163111,122.25,122.23,0.14216157]
[1741619970628,0.15163111,122.25,122.22,0.14216157]
[1741619970838,69.17095431,122.24,122.21,0.14216157]
[1741619971141,69.17095431,122.23,122.21,0.14216157]
[1741619971325,69.17095431,122.24,122.2,0.14216157]
[1741619971532,69.32258542,122.25,122.21,0.14216157]
[1741619971737,69.32258542,122.25,122.2,0.14216157]
[1741619971950,69.32258542,122.25,122.21,0.14216157]
[1741619972125,0.15163111,122.25,122.21,0.14216157]
[1741619972331,69.32258542,122.25,122.22,0.14216157]
[1741619972533,69.17095431,122.23,122.19,8.1834]
[1741619972834,69.17095431,122.24,122.2,0.14216157]
[1741619973032,69.17095431,122.22,122.18,0.28432314]
[1741619973233,12.34,122.24,122.18,0.28432314]
[1741619973456,12.34,122.24,122.22,0.14216157]
[1741619973822,12.34,122.24,122.21,69.31311588]
[1741619974025,0.21463111,122.25,122.22,0.14216157]
[1741619974229,0.21463111,122.25,122.24,8.1806]
[1741619974457,0.21463111,122.25,122.23,0.14216157]
[1741619974738,0.21463111,122.25,122.23,8.1812]
[1741619974937,69.38558542,122.25,122.22,0.14216157]
[1741619975156,0.21463111,122.25,122.22,8.32386157]
[1741619975646,0.21463111,122.25,122.24,0.14216157]
[1741619976321,0.21463111,122.25,122.23,0.14216157]
[1741619976841,0.21463111,122.25,122.24,0.14216157]
[1741619977031,77.56548542,122.25,122.2,27.22159684]
[1741619977234,69.17095431,122.22,122.17,0.28432314]
[1741619977433,0.21463111,122.25,122.17,28.93282314]
[1741619977740,69.17095431,122.24,122.2,0.28432314]
[1741619977940,69.17095431,122.24,122.2,0.14216157]
[1741619978145,69.38558542,122.25,122.2,0.28432314]
[1741619978328,69.38558542,122.25,122.21,8.1826]
[1741619978529,69.38558542,122.25,122.22,0.28432314]
[1741619978840,0.21463111,122.25,122.24,0.28432314]
[1741619979142,0.21463111,122.25,122.24,0.14216157]
[1741619979349,0.21463111,122.25,122.24,69.31311588]
[1741619979549,3.111e-05,122.25,122.24,88.10492631]
[1741619979744,1.316e-05,122.26,122.25,18.933972]
[1741619980048,7.763e-05,122.27,122.26,0.14216157]
[1741619980352,7.763e-05,122.27,122.26,88.49387429]
[1741619980553,7.763e-05,122.27,122.26,96.67307429]
[1741619980739,1.9e-06,122.28,122.27,18.933972]
[1741619980934,1.9e-06,122.28,122.27,107.14352315]
[1741619981245,1.9e-06,122.28,122.27,88.35171272]
[1741619981540,1.9e-06,122.28,122.27,0.14216157]
[1741619981748,1.9e-06,122.28,122.27,69.45527745]
[1741619982050,1.9e-06,122.28,122.27,88.10492631]
[1741619982427,0.16015139,122.29,122.27,88.10492631]
[1741619982428,5.329e-05,122.29,122.28,0.28432314]
[1741619982628,5.329e-05,122.29,122.28,88.10492631]
[1741619982871,5.329e-05,122.29,122.28,69.45527745]
[1741619983547,5.329e-05,122.29,122.28,88.49387429]
[1741619984065,5.329e-05,122.29,122.28,0.28432314]
[1741619984255,69.1710076,122.29,122.23,1.22647931]
[1741619984560,69.17095431,122.24,122.18,8.1846]
[1741619984738,12.32,122.24,122.17,8.1851]
[1741619984940,12.32,122.24,122.18,0.14216157]
[1741619985243,69.17095431,122.22,122.18,0.14216157]
[1741619985449,69.17095431,122.2,122.18,0.14216157]
[1741619985751,69.17095431,122.2,122.16,0.14216157]
[1741619986251,69.17095431,122.18,122.16,0.14216157]
[1741619986636,69.17095431,122.18,122.15,0.14216157]
[1741619986839,69.17095431,122.19,122.15,0.14216157]
[1741619987142,69.17095431,122.16,122.09,77.36145431]
[1741619987351,69.17095431,122.13,122.08,0.03]
[1741619987542,69.17095431,122.14,122.08,77.39185431]
[1741619987863,194.98,122.15,122.12,0.14216157]
[1741619988069,194.98,122.15,122.12,0.28432314]
[1741619988357,194.98,122.15,122.12,0.14216157]
[1741619988543,264.15095431,122.15,122.11,0.14216157]
[1741619988732,264.15095431,122.15,122.1,8.33206157]
[1741619988934,264.15095431,122.15,122.11,0.14216157]
[1741619989128,69.17095431,122.14,122.1,0.14216157]
[1741619989435,69.17095431,122.13,122.09,0.28432314]
[1741619989853,69.17095431,122.14,122.09,8.47482314]
[1741619990038,264.15095431,122.15,122.11,0.14216157]
[1741619990237,194.98,122.15,122.12,0.14216157]
[1741619990457,194.98,122.15,122.12,8.47242314]
[1741619990673,194.98,122.15,122.14,69.45527745]
[1741619991154,0.16523446,122.16,122.15,0.28432314]
[1741619991336,0.16523446,122.16,122.15,0.14216157]
[1741619991750,0.16523446,122.16,122.14,0.14216157]
[1741619992239,0.16523446,122.16,122.14,0.28432314]
[1741619992655,0.16523446,122.16,122.14,8.47092314]
[1741619992954,0.16523446,122.16,122.15,0.28432314]
[1741619993131,0.16523446,122.16,122.15,0.14216157]
[1741619994360,69.33618877,122.16,122.15,0.14216157]
[1741619994737,0.16523446,122.16,122.15,0.14216157]
[1741619994935,0.16523446,122.16,122.15,8.32876157]
[1741619995162,0.16523446,122.16,122.15,77.64187745]
[1741619995743,4.579e-05,122.17,122.16,0.28432314]
[1741619995956,4.579e-05,122.17,122.16,107.14352315]
[1741619996149,4.579e-05,122.17,122.16,88.49387429]
[1741619996956,4.579e-05,122.17,122.16,8.47022314]
[1741619997350,4.579e-05,122.17,122.16,77.64117745]
[1741619998046,4.579e-05,122.17,122.15,0.28432314]
[1741619998352,4.579e-05,122.17,122.15,0.14216157]
[1741619998668,4.579e-05,122.17,122.15,8.32876157]
[1741619999138,4.579e-05,122.17,122.16,69.45527745]
[1741619999334,4.579e-05,122.17,122.16,0.14216157]
[1741619999835,69.1710001,122.17,122.16,0.14216157]
[1741620000038,81.4710001,122.17,122.11,69.17095431]
[1741620000258,69.17095431,122.12,122.08,0.03]
[1741620000559,12.3,122.11,122.09,0.14216157]
[1741620000764,81.96185431,122.16,122.09,0.14216157]
[1741620000765,12.3,122.15,122.09,0.14216157]
[1741620000948,69.17095431,122.12,122.08,0.03]
[1741620001141,69.17095431,122.11,122.08,0.17216157]
[1741620001352,69.17095431,122.1,122.08,0.03]
[1741620001648,195.12,122.11,122.08,0.03]
[1741620001649,69.17095431,122.09,122.08,0.03]
[1741620002061,87.32144654,122.09,122.08,0.03]
[1741620002366,11.9652,122.07,122.05,0.03]
[1741620002664,69.17095431,122.06,122.02,0.03]
[1741620002965,81.13615431,122.07,122.02,8.36736157]
[1741620003161,69.17095431,122.04,122.02,0.03]
[1741620003368,69.17095431,122.03,122.02,0.03]
[1741620003557,69.17095431,122.05,122.02,0.03]
[1741620004264,93.43615431,122.07,122.03,0.14216157]
[1741620004460,69.17095431,122.06,122.03,0.14216157]
[1741620004660,69.17095431,122.04,122.02,0.03]
[1741620004962,24.2652,122.07,122.02,0.17216157]
[1741620005167,69.17095431,122.04,122.02,0.17216157]
[1741620005356,69.17095431,122.05,122.02,0.17216157]
[1741620005863,87.82060317,122.03,122.02,0.03]
[1741620006179,69.17095431,122.03,121.98,0.30695334]
[1741620006356,69.17095431,122.02,121.98,0.44911491]
[1741620006668,24.2652,122.07,122.01,0.28432314]
[1741620006875,69.17095431,122.06,122.01,69.31311588]
[1741620007075,69.17095431,122.05,122.01,8.33816157]
[1741620007244,69.17095431,122.1,122.01,8.33816157]
[1741620007245,207.42,122.11,122.05,0.14216157]
[1741620007445,0.16725381,122.06,122.05,0.14216157]
[1741620007675,69.33820812,122.06,122.02,0.14216157]
[1741620007850,69.17095431,122.03,121.98,0.44911491]
[1741620008169,69.17095431,122.0,121.98,8.64691491]
[1741620008349,69.17095431,122.01,121.98,8.64691491]
[1741620008545,12.3,122.05,122.0,0.14216157]
[1741620008759,12.3,122.05,121.99,0.14216157]
[1741620009086,12.3,122.05,122.02,0.14216157]
[1741620009253,12.3,122.05,122.02,0.28432314]
[1741620009583,12.46725381,122.06,122.03,0.14216157]
[1741620009760,81.63820812,122.06,122.03,0.14216157]
[1741620009950,0.16725381,122.06,122.05,69.31311588]
[1741620010148,0.16725381,122.06,122.05,88.49387429]
[1741620010969,7.858e-05,122.07,122.06,0.14216157]
[1741620011281,7.665e-05,122.08,122.07,0.28432314]
[1741620011483,69.17103096,122.08,122.07,0.14216157]
[1741620011852,7.665e-05,122.08,122.07,0.14216157]
[1741620012778,7.665e-05,122.08,122.07,69.45527745]
[1741620012984,7.665e-05,122.08,122.07,77.64727745]
[1741620013352,4.319e-05,122.11,122.1,20.28432314]
[1741620013552,4.319e-05,122.11,122.1,38.933972]
[1741620013771,195.26,122.21,122.1,197.54235087]
[1741620013959,195.26,122.21,122.16,0.14216157]
[1741620014163,69.17095431,122.19,122.16,0.14216157]
[1741620014468,264.43095431,122.21,122.17,0.14216157]
[1741620014673,195.26,122.21,122.17,69.31311588]
[1741620014975,69.17095431,122.18,122.13,8.33006157]
[1741620015156,69.17095431,122.17,122.13,8.33006157]
[1741620015352,69.17095431,122.19,122.14,69.31311588]
[1741620015574,195.26,122.21,122.17,0.14216157]
[1741620015878,69.17095431,122.2,122.17,0.14216157]
[1741620016078,264.43095431,122.21,122.16,69.31311588]
[1741620016954,264.43095431,122.21,122.17,0.14216157]
[1741620017280,69.17095431,122.2,122.17,0.14216157]
[1741620017465,203.4427,122.21,122.17,0.14216157]
[1741620017665,69.17095431,122.19,122.15,0.14216157]
[1741620017969,69.17095431,122.17,122.15,0.14216157]
[1741620018169,69.17095431,122.18,122.13,69.31311588]
[1741620018371,69.17095431,122.2,122.16,0.14216157]
[1741620018586,69.17095431,122.17,122.13,19.03859684]
[1741620018891,69.17095431,122.14,122.09,0.28432314]
[1741620019058,69.17095431,122.13,122.09,8.47472314]
[1741620019752,69.17095431,122.14,122.09,77.64567745]
[1741620019970,81.47095431,122.16,122.11,0.28432314]
[1741620020171,81.47095431,122.16,122.11,69.31311588]
[1741620020390,12.3,122.16,122.13,0.14216157]
[1741620020609,12.3,122.16,122.13,0.28432314]
[1741620020758,8.1835,122.2,122.16,0.14216157]
[1741620020759,81.45095431,122.2,122.16,0.14216157]
[1741620020959,69.17095431,122.19,122.16,0.14216157]
[1741620021181,69.17095431,122.17,122.16,0.14216157]
[1741620021485,69.17095431,122.17,122.15,0.14216157]
[1741620021686,69.17095431,122.18,122.15,0.14216157]
[1741620021888,195.26,122.21,122.18,0.14216157]
[1741620022087,272.61355431,122.21,122.18,0.14216157]
[1741620022402,69.17095431,122.2,122.16,0.14216157]
[1741620022591,195.26,122.21,122.17,0.14216157]
[1741620022909,195.323,122.21,122.18,69.45527745]
[1741620023198,195.323,122.21,122.18,77.63937745]
[1741620023558,195.323,122.21,122.18,8.32626157]
[1741620023958,195.323,122.21,122.2,0.14216157]
[1741620024571,195.323,122.21,122.19,0.14216157]
[1741620024802,195.323,122.21,122.19,0.28432314]
[1741620024970,195.323,122.21,122.19,0.14216157]
[1741620025294,195.323,122.21,122.18,77.49741588]
[1741620025463,195.323,122.21,122.19,0.14216157]
[1741620026990,69.17095431,122.2,122.16,8.32806157]
[1741620027183,69.17095431,122.19,122.16,8.32806157]
[1741620027491,0.15096111,122.2,122.18,0.14216157]
[1741620027693,69.32191542,122.2,122.18,0.14216157]
[1741620027917,12.28,122.19,122.12,8.1886]
[1741620028087,30.74374886,122.18,122.13,0.14216157]
[1741620028272,12.0941,122.18,122.13,0.14216157]
[1741620028591,30.74374886,122.18,122.12,0.14216157]
[1741620028899,69.17095431,122.15,122.12,0.14216157]
[1741620029071,69.17095431,122.16,122.14,0.14216157]
[1741620029389,69.17095431,122.17,122.14,0.14216157]
[1741620029579,69.17095431,122.16,122.14,0.14216157]
[1741620029773,69.17095431,122.17,122.14,0.14216157]
[1741620030411,81.26505431,122.18,122.14,0.28432314]
[1741620030605,69.32191542,122.2,122.15,69.17095431]
[1741620030890,69.17095431,122.18,122.16,0.14216157]
[1741620031190,69.17095431,122.19,122.14,69.17095431]
[1741620031499,0.15096111,122.2,122.14,8.47122314]
[1741620031703,0.15096111,122.2,122.18,0.28432314]
[1741620032203,0.15096111,122.2,122.17,0.14216157]
[1741620032387,0.15096111,122.2,122.17,69.31311588]
[1741620032712,0.15096111,122.2,122.18,0.14216157]
[1741620032895,0.15096111,122.2,122.19,0.14216157]
[1741620033498,0.15096111,122.2,122.18,0.14216157]
[1741620033883,0.15096111,122.2,122.18,0.28432314]
[1741620034597,0.15096111,122.2,122.18,69.45527745]
[1741620034800,0.15096111,122.2,122.19,88.10492631]
[1741620034999,6.843e-05,122.21,122.2,0.28432314]
[1741620035306,6.843e-05,122.21,122.2,145.55527745]
[1741620035505,6.843e-05,122.21,122.2,153.73857745]
[1741620035680,6.843e-05,122.21,122.2,172.38822631]
[1741620035884,8.775e-05,122.22,122.2,172.38822631]
[1741620036214,8.775e-05,122.22,122.21,88.10492631]
[1741620036389,8.775e-05,122.22,122.21,164.20492631]
[1741620036904,8.775e-05,122.22,122.21,76.38432314]
[1741620037109,8.775e-05,122.22,122.21,95.033972]
[1741620037312,8.775e-05,122.22,122.21,164.20492631]
[1741620037485,8.775e-05,122.22,122.21,172.38752631]
[1741620037987,8.775e-05,122.22,122.21,153.73787745]
[1741620038183,8.775e-05,122.22,122.21,172.38752631]
[1741620038486,0.17494699,122.23,122.22,18.933972]
[1741620038487,3.474e-05,122.23,122.22,18.933972]
[1741620038686,0.1758477,122.24,122.23,95.033972]
[1741620038687,8.244e-05,122.24,122.23,95.033972]
[1741620038990,4.063e-05,122.25,122.24,18.933972]
[1741620039181,4.063e-05,122.25,122.24,164.20492631]
[1741620039380,4.063e-05,122.25,122.24,172.38552631]
[1741620040607,6.562e-05,122.26,122.24,172.38552631]
[1741620040907,6.562e-05,122.26,122.25,89.33121347]
[1741620041206,3.63e-06,122.29,122.28,38.933972]
[1741620041407,0.063,122.33,122.32,20.28432314]
[1741620041596,0.0001,122.34,122.33,18.933972]
[1741620041798,195.083,122.42,122.37,18.933972]
[1741620041799,0.063,122.42,122.37,18.933972]
[1741620042109,0.063,122.42,122.37,20.1592348]
[1741620042409,0.063,122.42,122.4,38.933972]
[1741620042612,0.063,122.42,122.4,253.37588062]
[1741620042934,0.063,122.42,122.4,76.24216157]
[1741620043408,0.063,122.42,122.4,164.20492631]
[1741620043587,0.063,122.42,122.4,76.38432314]
[1741620043786,69.23395431,122.42,122.4,76.24216157]
[1741620044006,0.063,122.42,122.4,76.38432314]
[1741620044214,0.063,122.42,122.4,172.37482631]
[1741620044395,0.063,122.42,122.4,145.55527745]
[1741620044600,0.063,122.42,122.4,76.38432314]
[1741620044910,69.23395431,122.42,122.4,0.14216157]
[1741620045088,69.23395431,122.41,122.38,0.28432314]
[1741620045293,69.17095431,122.4,122.38,0.14216157]
[1741620045605,69.17095431,122.39,122.31,76.1]
[1741620045791,69.17095431,122.35,122.3,69.17095431]
[1741620045991,69.17095431,122.35,122.3,76.1]
[1741620046288,69.17095431,122.33,122.31,0.14216157]
[1741620046483,12.24,122.37,122.31,69.45527745]
[1741620046708,81.41095431,122.37,122.33,0.14216157]
[1741620046894,69.17095431,122.36,122.33,0.14216157]
[1741620047095,69.17095431,122.35,122.33,0.14216157]
[1741620047292,69.17095431,122.35,122.32,0.14216157]
[1741620047519,0.1773261,122.33,122.32,0.14216157]
[1741620047808,0.1773261,122.33,122.32,172.38012631]
[1741620048201,0.1773261,122.33,122.32,145.55527745]
[1741620048403,0.1773261,122.33,122.32,76.38432314]
[1741620048710,0.1773261,122.33,122.32,76.24216157]
[1741620048913,8.3519261,122.33,122.3,0.28432314]
[1741620049093,0.1773261,122.33,122.3,0.28432314]
[1741620049618,0.1773261,122.33,122.3,69.45527745]
[1741620050007,0.1773261,122.33,122.32,0.28432314]
[1741620050209,0.1773261,122.33,122.32,69.45527745]
[1741620050717,0.1773261,122.33,122.32,164.20492631]
[1741620051589,0.1773261,122.33,122.32,172.38012631]
[1741620052191,0.14739456,122.34,122.33,95.0339459]
[1741620052395,0.14739456,122.34,122.33,234.60141938]
[1741620052596,9.456e-05,122.34,122.33,164.20490021]
[1741620053208,9.456e-05,122.34,122.33,76.38429704]
[1741620053417,77.34494887,122.34,122.33,0.14216157]